bitfinex/quotes_SOLUSD_20241231
["timestamp","ask_amount","ask_price","bid_price","bid_amount"]
[1735639547292,0.9669481,193.96,193.88,0.12549]
[1735639547489,23.776884,193.98,193.88,0.12549]
[1735639547677,20.0,193.95,193.88,0.12549]
[1735639548201,0.96682462,194.06,193.9,0.12549]
[1735639548400,20.0,194.0,193.9,0.12549]
[1735639548582,0.96666968,193.99,193.9,0.37647]
[1735639548788,0.96665148,194.02,193.9,0.37647]
[1735639549096,8.09766435,194.09,193.93,6.585]
[1735639549097,7.19291397,194.08,193.93,6.585]
[1735639549292,20.0,194.05,193.94,0.61934629]
[1735639549480,0.96645019,194.04,193.95,0.37647]
[1735639549679,23.776884,194.06,193.95,0.37647]
[1735639549894,20.0,194.01,193.95,0.12549]
[1735639550099,20.0,194.01,193.93,6.585]
[1735639550100,0.966601,194.0,193.93,6.585]
[1735639550297,0.966601,194.0,193.94,0.12549]
[1735639551189,20.0,194.01,193.94,0.12549]
[1735639551391,0.9666004,194.0,193.94,0.12549]
[1735639552399,0.9666004,194.0,193.93,1.6646]
[1735639554886,0.9666004,194.0,193.9,1.79009]
[1735639560007,20.0,194.01,193.92,0.12549]
[1735639560202,0.96653863,194.07,193.94,0.12549]
[1735639560402,0.96653863,194.07,193.96,0.12549]
[1735639560603,0.96653863,194.07,193.96,0.74469905]
[1735639561586,20.0,194.05,193.96,0.74469905]
[1735639561909,6.2263,194.13,193.98,0.12549]
[1735639562116,0.96627326,194.12,193.98,0.12549]
[1735639562412,0.96627326,194.12,194.0,0.12549]
[1735639563017,20.0,194.08,194.0,0.74431895]
[1735639563385,0.96613216,194.07,194.0,0.12549]
[1735639564084,0.96613216,194.07,193.98,0.61872321]
[1735639564291,0.96613216,194.07,193.97,1.6646]
[1735639564620,0.96613216,194.07,193.98,0.12549]
[1735639565799,20.0,194.03,193.97,1.6646]
[1735639565989,0.96652696,194.02,193.97,1.6646]
[1735639568210,20.0,193.97,193.9,1.6646]
[1735639568410,0.96677765,193.96,193.9,1.6646]
[1735639568616,0.96677765,193.96,193.85,1.6646]
[1735639568812,20.0,193.92,193.85,1.6646]
[1735639569222,20.0,193.92,193.86,0.12549]
[1735639569522,20.0,193.92,193.85,5.25596128]
[1735639569696,20.0,193.92,193.85,1.6646]
[1735639573309,20.0,193.92,193.86,0.12549]
[1735639576023,20.0,193.99,193.86,0.12549]
[1735639576202,0.96688005,193.98,193.86,0.12549]
[1735639576402,23.776884,193.97,193.86,0.12549]
[1735639576610,0.96686069,193.96,193.86,0.12549]
[1735639576807,0.96686216,193.97,193.88,0.12549]
[1735639576998,0.96678816,194.01,193.88,0.12549]
[1735639577316,24.027864,194.0,193.88,0.12549]
[1735639577515,20.0,193.95,193.87,0.12549]
[1735639578015,0.96685355,193.97,193.87,40.17645695]
[1735639578215,0.96660866,194.03,193.91,0.37647]
[1735639578415,20.0,194.01,193.93,0.12549]
[1735639578602,0.96660866,194.03,193.93,0.12549]
[1735639578798,20.0,194.01,193.93,0.12549]
[1735639580010,20.0,194.01,193.93,0.37647]
[1735639580201,0.96653227,194.11,193.95,0.12549]
[1735639580400,0.96646233,194.03,193.95,0.12549]
[1735639580901,20.0,194.01,193.95,0.12549]
[1735639583035,23.776884,194.04,193.95,0.12549]
[1735639583202,0.9664686,194.03,193.95,0.12549]
[1735639583511,0.96646583,194.05,193.96,1.5939]
[1735639584221,0.96646583,194.05,193.97,0.12549]
[1735639584426,0.96640468,194.08,193.97,0.12549]
[1735639585003,20.0,194.06,193.97,0.12549]
[1735639586829,20.0,194.06,193.97,0.37647]
[1735639587416,0.96630493,194.05,193.97,0.37647]
[1735639590634,1.5542,194.15,194.01,0.12549]
[1735639590812,0.96612163,194.14,194.01,0.37647]
[1735639591131,20.0,194.09,194.03,0.12549]
[1735639591338,20.0,194.09,194.0,0.6186114]
[1735639591635,20.0,194.09,194.01,16.39957295]
[1735639591933,20.0,194.09,194.03,0.12549]
[1735639592137,0.96613806,194.11,194.03,0.12549]
[1735639592303,2.52029288,194.15,194.03,0.37647]
[1735639593229,20.0,194.13,194.03,0.37647]
[1735639593421,0.96604224,194.12,194.03,0.37647]
[1735639594331,20.0,194.08,194.02,1.5895]
[1735639594533,0.96625266,194.07,194.02,1.5895]
[1735639594731,20.0,194.1,194.02,1.5895]
[1735639594941,0.96622929,194.09,194.02,1.5895]
[1735639595538,20.0,194.08,194.02,1.5895]
[1735639596232,0.96621436,194.07,194.02,1.5895]
[1735639598338,0.96621436,194.07,193.98,1.5895]
[1735639599136,0.96621436,194.07,193.99,0.12549]
[1735639599457,0.96621436,194.07,194.0,1.5895]
[1735639599614,8.09766435,194.21,194.11,0.12549]
[1735639599814,20.0,194.18,194.11,0.12549]
[1735639600230,0.34732675,194.2,194.11,0.12549]
[1735639600432,20.0,194.18,194.08,0.25098]
[1735639600629,0.34732675,194.17,194.07,5.69303241]
[1735639600837,0.34732675,194.2,194.07,5.69303241]
[1735639601035,0.34732675,194.2,194.08,0.12549]
[1735639601816,0.47281675,194.21,194.08,0.12549]
[1735639604347,0.47281675,194.21,194.08,16.14859295]
[1735639606257,0.12549,194.2,194.06,1.5217]
[1735639606459,0.12549,194.2,194.07,0.12549]
[1735639606636,23.776884,194.17,194.07,0.12549]
[1735639606823,0.34732675,194.16,194.07,0.12549]
[1735639607259,0.34732675,194.16,194.06,1.5217]
[1735639607547,23.776884,194.15,194.06,1.5217]
[1735639607729,0.34732675,194.14,194.06,1.5217]
[1735639608344,0.34732675,194.14,194.06,17.54480295]
[1735639612250,0.34732675,194.15,194.09,16.02310295]
[1735639612422,0.34732675,194.21,194.09,16.02310295]
[1735639613326,20.0,194.18,194.07,0.12549]
[1735639613638,23.776884,194.16,194.06,1.5217]
[1735639613934,0.34732675,194.15,194.06,1.5217]
[1735639614764,23.776884,194.17,194.06,1.5217]
[1735639614966,0.34732675,194.16,194.06,1.5217]
[1735639615976,23.776884,194.15,194.06,17.54480295]
[1735639616142,0.34732675,194.14,194.06,1.5217]
[1735639618760,0.34732675,194.14,194.07,0.12549]
[1735639618959,0.34732675,194.2,194.07,16.14859295]
[1735639619251,20.0,194.18,194.07,0.12549]
[1735639619468,24.12421075,194.17,194.07,0.12549]
[1735639620365,24.12421075,194.17,194.07,16.14859295]
[1735639621567,24.12421075,194.17,194.08,16.02310295]
[1735639621767,0.34732675,194.17,194.1,16.14859295]
[1735639621980,284.02425117,194.38,194.12,0.12549]
[1735639621981,0.34732675,194.22,194.12,0.12549]
[1735639622264,0.34732675,194.22,194.13,17.76599295]
[1735639622448,20.0,194.21,194.13,17.76599295]
[1735639622764,20.34732675,194.21,194.13,17.76599295]
[1735639623552,0.34732675,194.2,194.13,17.76599295]
[1735639623754,20.0,194.21,194.13,17.76599295]
[1735639624161,0.34732675,194.2,194.13,17.76599295]
[1735639624960,0.34732675,194.2,194.13,1.74289]
[1735639626347,23.776884,194.25,194.13,1.74289]
[1735639626667,20.0,194.22,194.13,17.76599295]
[1735639626842,0.34732675,194.21,194.13,17.76599295]
[1735639627452,0.34732675,194.21,194.13,1.74289]
[1735639633066,0.34732675,194.27,194.15,0.12549]
[1735639633278,24.12421075,194.27,194.15,0.12549]
[1735639633451,0.34732675,194.27,194.15,0.37647]
[1735639634057,20.34732675,194.27,194.17,0.12549]
[1735639634256,20.0,194.26,194.16,4.9204]
[1735639634449,24.12421075,194.25,194.16,4.9204]
[1735639634949,0.34732675,194.25,194.13,1.6174]
[1735639635250,20.0,194.22,194.13,1.6174]
[1735639635442,0.34732675,194.21,194.13,1.6174]
[1735639637964,20.0,194.22,194.14,0.12549]
[1735639638681,0.34732675,194.33,194.21,0.37647]
[1735639638848,20.0,194.32,194.23,0.12549]
[1735639639046,0.34732675,194.31,194.23,0.12549]
[1735639639456,20.0,194.32,194.24,1.6539]
[1735639639653,0.34732675,194.31,194.24,1.6539]
[1735639640566,0.34732675,194.33,194.24,1.6539]
[1735639640763,20.0,194.32,194.24,1.6539]
[1735639640967,23.776884,194.34,194.24,1.6539]
[1735639641275,0.34732675,194.33,194.24,1.6539]
[1735639644059,20.0,194.31,194.24,1.6539]
[1735639644258,24.12421075,194.3,194.24,1.6539]
[1735639644568,20.0,194.27,194.2,4.9204]
[1735639644757,0.34732675,194.26,194.2,4.9204]
[1735639644957,0.34732675,194.26,194.19,1.6539]
[1735639649486,0.34732675,194.26,194.19,17.60888619]
[1735639650673,20.0,194.27,194.19,17.60888619]
[1735639651055,20.0,194.27,194.2,0.12549]
[1735639651351,0.34732675,194.26,194.2,0.12549]
[1735639651864,20.0,194.27,194.2,0.12549]
[1735639652063,20.0,194.27,194.21,15.95498619]
[1735639652367,20.0,194.32,194.23,0.12549]
[1735639652666,0.34732675,194.31,194.23,0.12549]
[1735639653876,8.2286,194.35,194.24,16.08047619]
[1735639654052,24.12421075,194.34,194.24,16.08047619]
[1735639654790,20.0,194.31,194.23,15.95498619]
[1735639655076,20.0,194.31,194.21,15.95498619]
[1735639655077,0.34732675,194.3,194.21,15.95498619]
[1735639656259,0.34732675,194.3,194.22,0.12549]
[1735639657179,0.34732675,194.3,194.2,16.33145619]
[1735639657679,0.34732675,194.3,194.22,0.12549]
[1735639657879,0.34732675,194.3,194.22,16.08047619]
[1735639660980,0.34732675,194.33,194.22,16.08047619]
[1735639661881,23.776884,194.34,194.22,0.12549]
[1735639662062,24.12421075,194.34,194.22,16.08047619]
[1735639662261,24.12421075,194.34,194.22,10.33593918]
[1735639665174,24.12421075,194.34,194.19,1.6539]
[1735639665175,20.0,194.31,194.19,1.6539]
[1735639665376,24.12421075,194.3,194.19,1.6539]
[1735639665668,23.776884,194.26,194.15,6.4636]
[1735639665878,0.34732675,194.25,194.15,6.4636]
[1735639667191,0.34732675,194.25,194.15,1.5432]
[1735639673890,0.34732675,194.25,194.16,0.12549]
[1735639674093,0.34732675,194.29,194.15,1.5432]
[1735639674394,20.0,194.25,194.15,1.5432]
[1735639674575,24.12421075,194.24,194.15,1.5432]
[1735639675283,0.34732675,194.24,194.15,1.5432]
[1735639675683,23.776884,194.23,194.15,1.5432]
[1735639675978,0.34732675,194.22,194.15,1.5432]
[1735639679096,23.902374,194.19,194.13,3.57271282]
[1735639679273,0.34732675,194.18,194.13,3.57271282]
[1735639679474,0.34732675,194.18,194.09,1.6583]
[1735639679698,24.12421075,194.18,194.09,1.6583]
[1735639680902,24.12421075,194.18,194.02,17.8055]
[1735639680903,20.0,194.11,194.04,1.6583]
[1735639681109,0.34732675,194.1,194.04,1.6583]
[1735639681302,0.34732675,194.1,194.04,5.23736724]
[1735639681985,0.34732675,194.1,194.04,1.6583]
[1735639682717,23.776884,194.12,194.04,1.6583]
[1735639683014,8.09766435,194.24,194.11,16.34718152]
[1735639683181,20.0,194.21,194.12,15.97071152]
[1735639683386,20.0,194.21,194.13,0.12549]
[1735639683720,0.34732675,194.2,194.13,0.12549]
[1735639683996,0.34732675,194.2,194.1,4.9204]
[1735639684181,0.34732675,194.2,194.11,0.12549]
[1735639684375,0.47281675,194.23,194.11,0.12549]
[1735639685602,20.0,194.21,194.1,4.9204]
[1735639685903,0.34732675,194.2,194.1,4.9204]
[1735639686605,0.34732675,194.2,194.08,1.1353]
[1735639686976,24.027864,194.19,194.08,1.1353]
[1735639687183,24.12421075,194.18,194.08,1.1353]
[1735639687499,23.776884,194.16,194.08,1.1353]
[1735639687706,0.34732675,194.15,194.08,1.1353]
[1735639688701,20.0,194.13,194.08,1.1353]
[1735639689005,20.0,194.09,194.03,1.6416]
[1735639689202,0.34732675,194.08,194.03,1.6416]
[1735639689500,0.34732675,194.08,194.0,4.9204]
[1735639689501,20.0,194.05,193.98,1.6416]
[1735639689715,20.0,194.05,193.95,41.82441919]
[1735639689716,0.34732675,194.04,193.95,5.69340715]
[1735639689879,24.12421075,194.04,193.95,4.9204]
[1735639691186,0.34732675,194.04,193.96,0.12549]
[1735639691389,0.34732675,194.12,193.96,0.12549]
[1735639691905,20.0,194.08,193.96,0.37647]
[1735639692097,0.34732675,194.07,193.96,0.37647]
[1735639693205,0.34732675,194.07,193.96,16.34718152]
[1735639693413,23.776884,194.08,193.98,0.12549]
[1735639693606,0.34732675,194.07,193.98,0.12549]
[1735639693796,0.34732675,194.07,193.98,0.37647]
[1735639693993,0.34732675,194.08,193.98,0.37647]
[1735639694192,0.34732675,194.15,193.98,16.34718152]
[1735639694397,0.12549,194.14,194.0,0.37647]
[1735639694607,20.0,194.11,194.0,0.37647]
[1735639694817,0.34732675,194.1,194.0,0.37647]
[1735639695115,24.12421075,194.1,194.0,0.12549]
[1735639695602,0.34732675,194.1,194.01,22.53271152]
[1735639695926,55.14508611,194.31,194.01,22.53271152]
[1735639695927,8.09766435,194.3,194.09,40.12406552]
[1735639696211,8.09766435,194.3,194.2,0.12549]
[1735639696511,20.0,194.34,194.2,0.12549]
[1735639696691,6.2109,194.37,194.2,0.12549]
[1735639697603,43.902374,194.33,194.2,0.12549]
[1735639697818,43.902374,194.33,194.2,0.89761336]
[1735639697994,6.2109,194.37,194.21,0.25098]
[1735639698195,6.2109,194.37,194.22,0.12549]
[1735639699116,43.776884,194.33,194.22,0.12549]
[1735639699630,6.2109,194.37,194.22,0.12549]
[1735639701004,1.5527,194.39,194.24,0.12549]
[1735639701494,23.902374,194.38,194.24,0.12549]
[1735639701929,0.12549,194.38,194.24,0.12549]
[1735639702414,20.0,194.35,194.24,25.65887316]
[1735639703598,20.0,194.35,194.25,25.53338316]
[1735639703799,20.0,194.35,194.26,0.12549]
[1735639704428,6.3708,194.43,194.26,0.37647]
[1735639704727,6.3708,194.43,194.28,0.12549]
[1735639705819,43.776884,194.39,194.28,0.12549]
[1735639706221,20.0,194.39,194.28,25.90985316]
[1735639706514,1.659,194.46,194.3,0.37647]
[1735639706719,24.027864,194.45,194.3,0.37647]
[1735639706905,1.659,194.46,194.3,0.37647]
[1735639707108,0.12549,194.45,194.3,0.37647]
[1735639707524,0.12549,194.45,194.3,25.90985316]
[1735639707724,21.659,194.46,194.3,26.68153222]
[1735639708716,20.0,194.42,194.3,25.90985316]
[1735639710012,20.0,194.45,194.32,0.37647]
[1735639710337,0.37647,194.44,194.24,25.53338316]
[1735639710539,0.37647,194.44,194.23,32.77284311]
[1735639710742,0.37647,194.44,194.23,6.4675]
[1735639711035,0.37647,194.44,194.24,0.12549]
[1735639711401,0.37647,194.44,194.23,6.4675]
[1735639712832,0.37647,194.44,194.23,32.00088316]
[1735639713038,0.37647,194.44,194.24,0.37647]
[1735639713206,0.37647,194.44,194.24,25.90985316]
[1735639715541,0.37647,194.44,194.26,0.12549]
[1735639718248,0.37647,194.44,194.27,0.12549]
[1735639718644,87.9708,194.49,194.29,0.12549]
[1735639718823,87.9708,194.49,194.31,0.12549]
[1735639719535,20.0,194.46,194.29,16.19879214]
[1735639719724,44.153354,194.45,194.3,16.07330214]
[1735639719923,44.153354,194.45,194.3,0.12549]
[1735639720336,0.25098,194.45,194.3,16.32428214]
[1735639720640,6.3708,194.49,194.3,16.32428214]
[1735639721439,44.027864,194.45,194.3,16.32428214]
[1735639722749,24.179982,194.51,194.38,0.37647]
[1735639722928,7.8557,194.51,194.33,7.33783847]
[1735639723137,20.0,194.43,194.33,6.5664]
[1735639723330,23.776884,194.42,194.33,6.5664]
[1735639723663,20.0,194.43,194.33,6.5664]
[1735639723822,20.0,194.48,194.34,0.12549]
[1735639724243,24.027864,194.47,194.34,0.12549]
[1735639724739,0.12549,194.46,194.33,6.5664]
[1735639726236,24.027864,194.47,194.34,16.07330214]
[1735639726619,473.529018,194.63,194.36,15.94781214]
[1735639727225,43.776884,194.47,194.38,15.94781214]
[1735639727420,215.3,194.63,194.39,15.94781214]
[1735639727623,6.1967,194.51,194.42,15.94781214]
[1735639727815,24.153354,194.55,194.42,15.94781214]
[1735639728027,20.0,194.48,194.43,15.94781214]
[1735639728821,23.776884,194.52,194.43,15.94781214]
[1735639729129,43.776884,194.52,194.4,15.94781214]
[1735639729320,0.25098,194.51,194.4,15.94781214]
[1735639729919,0.25098,194.51,194.39,15.94781214]
[1735639730242,43.776884,194.52,194.41,15.94781214]
[1735639730419,43.776884,194.52,194.42,15.94781214]
[1735639731343,43.776884,194.52,194.41,15.94781214]
[1735639732338,0.12549,194.51,194.41,15.94781214]
[1735639732523,0.12549,194.51,194.39,15.94781214]
[1735639733530,0.37647,194.51,194.35,16.71923222]
[1735639733925,0.37647,194.51,194.36,35.94781214]
[1735639735844,0.25098,194.51,194.37,0.12549]
[1735639736138,0.12549,194.5,194.37,15.94781214]
[1735639736443,0.12549,194.5,194.36,35.94781214]
[1735639736637,0.12549,194.5,194.35,15.94781214]
[1735639738421,23.776884,194.44,194.35,15.94781214]
[1735639738623,23.776884,194.44,194.27,145.2153052]
[1735639738624,23.776884,194.35,194.22,1.5598]
[1735639738842,23.776884,194.35,194.22,17.50761214]
[1735639739038,23.776884,194.35,194.26,16.07330214]
[1735639739236,20.0,194.36,194.26,16.07330214]
[1735639739445,20.0,194.36,194.28,0.12549]
[1735639740128,23.776884,194.35,194.29,3.5371966]
[1735639741031,23.776884,194.35,194.3,3.5371966]
[1735639741333,23.776884,194.35,194.31,3.5371966]
[1735639741830,20.0,194.33,194.32,3.5371966]
[1735639742150,43.776884,194.33,194.32,3.5371966]
[1735639745232,43.902374,194.33,194.32,3.5371966]
[1735639745735,43.902374,194.33,194.2,4.9204]
[1735639745736,23.776884,194.32,194.21,3.5371966]
[1735639745952,20.0,194.29,194.21,3.5371966]
[1735639746127,0.37647,194.31,194.21,3.5371966]
[1735639746128,23.902374,194.27,194.21,3.5371966]
[1735639746324,23.776884,194.23,194.18,3.5371966]
[1735639746737,23.776884,194.23,194.14,3.5371966]
[1735639747157,23.776884,194.23,194.15,3.5371966]
[1735639747860,23.776884,194.23,194.14,3.5371966]
[1735639748068,0.12549,194.22,194.14,3.5371966]
[1735639748441,0.12549,194.22,194.09,4.9204]
[1735639748966,20.0,194.2,194.1,0.12549]
[1735639749837,23.776884,194.19,194.07,1.5848]
[1735639750242,20.0,194.14,194.06,3.46590118]
[1735639750556,23.776884,194.13,194.01,0.77280654]
[1735639750758,23.776884,194.13,193.99,4.9204]
[1735639750960,20.0,194.1,193.99,4.9204]
[1735639751773,20.0,194.1,194.0,0.12549]
[1735639751959,20.0,194.1,193.99,4.9204]
[1735639752271,0.25098,194.12,193.99,4.9204]
[1735639752987,6.3334,194.17,194.0,0.37647]
[1735639753272,20.0,194.14,194.0,0.37647]
[1735639753441,20.0,194.14,194.03,20.37647]
[1735639756444,6.3334,194.17,194.05,0.12549]
[1735639757443,23.776884,194.16,194.05,0.12549]
[1735639764861,20.0,194.13,194.01,0.77289222]
[1735639765060,20.0,194.13,194.0,0.77292336]
[1735639765349,23.776884,194.12,193.99,4.9204]
[1735639765551,20.0,194.09,193.99,4.9204]
[1735639770176,23.776884,194.08,193.99,4.9204]
[1735639770383,23.776884,194.08,193.97,1.5848]
[1735639770384,20.0,194.05,193.97,1.5848]
[1735639777980,1.64,194.13,193.98,0.12549]
[1735639778386,20.0,194.05,193.97,1.5848]
[1735639782687,20.0,194.01,193.95,0.77313315]
[1735639782885,20.0,194.01,193.92,1.657]
[1735639784305,23.776884,194.0,193.92,1.657]
[1735639784503,20.0,193.97,193.92,1.657]
[1735639786018,20.0,193.97,193.87,2.00467]
[1735639789917,20.0,193.97,193.87,5.46863823]
[1735639790215,20.0,193.97,193.87,6.24208831]
[1735639790419,20.0,193.97,193.87,2.77812008]
[1735639791824,20.0,193.97,193.89,0.12549]
[1735639792195,0.25098,194.01,193.89,0.12549]
[1735639792399,20.0,193.99,193.89,0.12549]
[1735639792695,20.0,193.99,193.88,0.12549]
[1735639796624,1.6538,194.03,193.88,0.12549]
[1735639796625,1.6538,194.03,193.89,0.25098]
[1735639796839,7.7358,194.08,193.9,0.12549]
[1735639797119,43.776884,194.04,193.92,0.12549]
[1735639802541,0.37647,194.07,193.92,0.12549]
[1735639802542,0.12549,194.07,193.92,0.12549]
[1735639803044,20.0,194.04,193.92,0.12549]
[1735639803538,0.25098,194.03,193.88,0.77332308]
[1735639804041,0.25098,194.03,193.89,0.12549]
[1735639804743,0.25098,194.03,193.88,0.77332308]
[1735639806241,0.25098,194.03,193.89,0.12549]
[1735639806936,0.25098,194.03,193.86,5.69379917]
[1735639808239,0.25098,194.03,193.88,0.12549]
[1735639808240,20.0,193.96,193.88,0.12549]
[1735639808443,20.0,193.96,193.86,4.9204]
[1735639809236,23.776884,193.95,193.86,4.9204]
[1735639809429,20.0,193.92,193.86,4.9204]
[1735639810341,20.0,193.92,193.81,4.26026292]
[1735639810527,20.0,193.92,193.82,4.9204]
[1735639812055,20.0,193.92,193.82,5.69406503]
[1735639812853,1.6422,193.99,193.82,5.69406503]
[1735639813043,1.6422,193.99,193.82,21.71851361]
[1735639813249,0.25098,193.98,193.82,21.71851361]
[1735639813428,20.0,193.95,193.82,21.71851361]
[1735639813951,20.0,193.93,193.82,5.69406503]
[1735639815147,1.6422,193.99,193.82,21.71851361]
[1735639815360,20.0,193.95,193.83,16.02444858]
[1735639815541,20.0,193.95,193.84,0.77352816]
[1735639821056,20.0,193.95,193.88,0.12549]
[1735639821236,20.0,194.01,193.88,0.12549]
[1735639821656,20.0,193.97,193.88,0.12549]
[1735639822246,20.0,193.97,193.88,0.37647]
[1735639823864,20.0,194.01,193.9,0.12549]
[1735639824438,20.0,194.01,193.9,0.37647]
[1735639827363,20.0,194.01,193.88,0.77334038]
[1735639828548,20.0,194.01,193.89,0.37647]
[1735639828965,20.0,194.01,193.89,3.87191992]
[1735639829565,20.0,194.01,193.89,0.37647]
[1735639832970,20.0,194.01,193.89,0.12549]
[1735639832971,23.776884,194.0,193.89,0.12549]
[1735639834665,20.0,193.97,193.88,3.49549123]
[1735639834866,20.0,193.93,193.87,1.6282]
[1735639835571,20.0,193.93,193.84,3.49842965]
[1735639835954,23.776884,193.92,193.83,1.5531]
[1735639836152,20.0,193.89,193.83,1.5531]
[1735639839165,23.776884,193.88,193.83,1.5531]
[1735639839359,23.776884,193.88,193.79,1.5531]
[1735639839560,20.0,193.89,193.79,1.5531]
[1735639839561,23.776884,193.89,193.79,1.5531]
[1735639840377,24.027864,193.91,193.79,1.5531]
[1735639842462,24.027864,193.91,193.8,0.12549]
[1735639842463,23.776884,193.91,193.8,0.12549]
[1735639842660,8.09766435,193.98,193.82,0.12549]
[1735639842871,8.09766435,193.98,193.82,0.37647]
[1735639843049,20.0,193.92,193.82,0.37647]
[1735639843382,20.0,193.92,193.84,0.12549]
[1735639843584,8.09766435,193.99,193.84,0.12549]
[1735639843585,43.776884,193.95,193.84,0.12549]
[1735639845886,43.776884,193.95,193.8,0.77362095]
[1735639846190,43.776884,193.95,193.81,20.37647]
[1735639846577,43.776884,193.95,193.83,0.12549]
[1735639847388,7.7714,194.0,193.83,20.37647]
[1735639848190,43.776884,193.96,193.85,0.12549]
[1735639850314,23.776884,193.96,193.86,1.6609]
[1735639850472,7.7714,194.0,193.87,0.12549]
[1735639851322,23.776884,193.99,193.87,0.37647]
[1735639851607,6.1168,194.0,193.87,0.37647]
[1735639851910,20.0,194.01,193.87,0.12549]
[1735639852818,20.0,193.97,193.87,0.37647]
[1735639854409,0.25098,194.02,193.87,0.37647]
[1735639854614,20.0,194.0,193.89,0.12549]
[1735639854789,20.0,194.0,193.89,0.37647]
[1735639859849,20.0,194.0,193.89,20.37647]
[1735639860002,81.6,194.08,193.91,0.37647]
[1735639860200,0.25098,194.07,193.91,0.12549]
[1735639860402,0.25098,194.07,193.9,1.6609]
[1735639860403,0.12549,194.03,193.9,1.6609]
[1735639860911,0.12549,194.02,193.9,1.6609]
[1735639862607,0.12549,194.03,193.91,0.12549]
[1735639863017,24.027864,194.06,193.91,0.12549]
[1735639863411,20.0,193.99,193.91,0.12549]
[1735639863616,0.12549,194.05,193.91,0.12549]
[1735639866330,0.25098,194.06,193.91,0.37647]
[1735639867033,20.0,194.04,193.91,0.37647]
[1735639867208,23.776884,194.03,193.91,0.37647]
[1735639867734,43.776884,194.04,193.91,0.37647]
[1735639870231,0.25098,194.03,193.9,1.6609]
[1735639871037,0.12549,194.02,193.9,1.6609]
[1735639873342,23.776884,193.96,193.9,1.6609]
[1735639874217,20.0,193.93,193.85,4.9204]
[1735639874418,20.0,193.93,193.85,6.475]
[1735639874948,23.776884,193.92,193.85,6.475]
[1735639875125,0.25098,193.91,193.85,1.5546]
[1735639875330,23.776884,193.88,193.8,6.475]
[1735639875926,7.642,193.93,193.8,6.475]
[1735639876450,20.0,193.89,193.8,6.475]
[1735639878145,23.776884,193.88,193.8,6.475]
[1735639884360,20.0,193.85,193.8,6.475]
[1735639885165,20.0,193.85,193.8,1.5546]
[1735639886155,24.027864,193.92,193.8,1.5546]
[1735639886451,23.776884,193.88,193.8,1.5546]
[1735639889353,20.0,193.85,193.8,1.5546]
[1735639891860,20.0,193.9,193.8,1.5546]
[1735639892335,9.65326435,193.98,193.81,0.89924324]
[1735639892539,15.70846435,193.98,193.81,0.89924324]
[1735639892756,15.70846435,193.98,193.82,4.9204]
[1735639892757,20.0,193.95,193.82,4.9204]
[1735639893060,15.70846435,193.98,193.83,0.12549]
[1735639893265,7.6108,193.98,193.83,0.12549]
[1735639893642,20.0,193.94,193.83,0.12549]
[1735639894151,20.0,193.94,193.83,0.89909437]
[1735639894665,20.0,193.95,193.85,0.12549]
[1735639894861,7.6108,193.98,193.85,1.72119]
[1735639895164,23.776884,193.97,193.85,2.49474224]
[1735639895459,1.5556,194.03,193.87,0.12549]
[1735639895767,1.5556,194.03,193.89,0.12549]
[1735639895959,20.0,194.01,193.89,0.89885247]
[1735639896153,24.027864,194.02,193.89,0.89885247]
[1735639896355,14.15286435,194.04,193.91,0.12549]
[1735639896552,6.0552,194.04,193.92,1.5957]
[1735639897368,20.0,194.0,193.92,1.5957]
[1735639897557,6.0552,194.04,193.93,0.12549]
[1735639897747,1.5556,194.08,193.93,0.12549]
[1735639900877,20.0,194.0,193.93,0.12549]
[1735639901070,20.0,194.0,193.92,1.5957]
[1735639905650,20.0,193.96,193.92,1.5957]